fUSD/lending_fUSD_20251201
["ID","MTS","AMOUNT","RATE_DAILY","PERIOD"]
[395236386,1764559850590,-250.0,0.00016149,2]
[395236387,1764559850599,-250.0,0.00016149,2]
[395236388,1764559850609,-250.0,0.00016149,2]
[395236389,1764559850619,-250.0,0.00016149,2]
[395236390,1764559850628,-250.0,0.00016149,2]
[395236391,1764559850637,-1000.0,0.00016149,2]
[395236392,1764559850647,-250.0,0.00016149,2]
[395236393,1764559850656,-1000.0,0.00016149,2]
[395236394,1764559850665,-250.0,0.00016149,2]
[395236395,1764559850675,-1000.0,0.00016149,2]
[395236396,1764559850684,-250.0,0.00016149,2]
[395236397,1764559850695,-1000.0,0.00016149,2]
[395236398,1764559850705,-250.0,0.00016149,2]
[395236399,1764559850716,-1000.0,0.00016149,2]
[395236400,1764559850725,-250.0,0.00016149,2]
[395236401,1764559850735,-1000.0,0.00016149,2]
[395236402,1764559850744,-250.0,0.00016149,2]
[395236403,1764559850753,-151.0,0.00016149,2]
[395236404,1764559850762,-1000.0,0.00016149,2]
[395236405,1764559850772,-250.0,0.00016149,2]
[395236406,1764559850781,-194.72792766,0.00016149,2]
[395236407,1764559850789,-1000.0,0.00016149,2]
[395236408,1764559850798,-1000.0,0.00016149,2]
[395236409,1764559850807,-1000.0,0.00016149,2]
[395236410,1764559850817,-1000.0,0.00016149,2]
[395236411,1764559850826,-1000.0,0.00016149,2]
[395236412,1764559850835,-1000.0,0.00016149,2]
[395236413,1764559850846,-1000.0,0.00016149,2]
[395236414,1764559850856,-1000.0,0.00016149,2]
[395236415,1764559850866,-1000.0,0.00016149,2]
[395236416,1764559850875,-1000.0,0.00016149,2]
[395236417,1764559850884,-1000.0,0.00016149,2]
[395236418,1764559850892,-1000.0,0.00016149,2]
[395236419,1764559850901,-1000.0,0.00016149,2]
[395236420,1764559850911,-1000.0,0.00016149,2]
[395236421,1764559850920,-1000.0,0.00016149,2]
[395236422,1764559850930,-1000.0,0.00016149,2]
[395236423,1764559850939,-1000.0,0.00016149,2]
[395236424,1764559850947,-1000.0,0.00016149,2]
[395236425,1764559850957,-1000.0,0.00016149,2]
[395236426,1764559850967,-226.43577512,0.0001615,2]
[395236427,1764559850976,-2092.314224,0.0001615,2]
[395236428,1764559850986,-150.0,0.0001615,2]
[395236429,1764559850997,-150.0,0.00016152,2]
[395236430,1764559851008,-150.0,0.00016161,2]
[395236431,1764559851018,-153.94390529,0.00016163,2]
[395236432,1764559851027,-215.77357495,0.00016163,2]
[395236433,1764559851036,-150.0,0.00016164,2]
[395236434,1764559851045,-151.0,0.00016165,2]
[395236435,1764559851054,-150.0,0.00016166,2]
[395236436,1764559851063,-150.0,0.0001617,2]
[395236437,1764559851072,-150.0,0.00016177,2]
[395236438,1764559851080,-150.0,0.00016177,2]
[395236439,1764559851089,-153.94390529,0.0001618,2]
[395236440,1764559851098,-215.77357495,0.0001618,2]
[395236441,1764559851107,-150.0,0.00016183,2]
[395236442,1764559851117,-150.0,0.00016184,2]
[395236443,1764559851126,-153.94390529,0.00016197,2]
[395236444,1764559851135,-215.77357495,0.00016197,2]
[395236445,1764559851145,-16505.57742365,0.000162,5]
[395236446,1764559851159,-150.0,0.00016202,2]
[395236447,1764559851169,-150.0,0.00016204,2]
[395236448,1764559851180,-150.0,0.00016208,2]
[395236449,1764559851191,-153.94390529,0.00016214,2]
[395236450,1764559851202,-215.77357495,0.00016214,2]
[395236451,1764559851216,-150.0,0.00016214,2]
[395236452,1764559851231,-150.0,0.00016219,2]
[395236453,1764559851240,-150.0,0.00016225,2]
[395236454,1764559851250,-153.94390529,0.00016231,2]
[395236455,1764559851260,-215.77357495,0.00016231,2]
[395236456,1764559851269,-150.0,0.00016231,2]
[395236457,1764559851282,-150.0,0.00016231,2]
[395236458,1764559851291,-150.0,0.00016231,2]
[395236459,1764559851301,-150.0,0.00016235,2]
[395236460,1764559851310,-908.0,0.00016238,2]
[395236461,1764559851322,-150.0,0.00016245,2]
[395236462,1764559851331,-153.94390529,0.00016249,2]
[395236463,1764559851340,-215.77357495,0.00016249,2]
[395236464,1764559851351,-150.0,0.00016255,2]
[395236465,1764559851360,-150.0,0.00016258,2]
[395236466,1764559851370,-150.0,0.00016258,2]
[395236467,1764559851380,-150.0,0.00016258,2]
[395236468,1764559851389,-1000.0,0.00016262,2]
[395236469,1764559851399,-484.4802032,0.00016264,2]
[395236470,1764559851409,-604.07312412,0.00016264,2]
[395236471,1764559851418,-153.94390529,0.00016266,2]
[395236472,1764559851427,-215.77357495,0.00016266,2]
[395236473,1764559851436,-945.69207061,0.00016266,2]
[395236474,1764559851445,-150.0,0.00016268,2]
[395236475,1764559851454,-150.0,0.00016274,2]
[395236476,1764559851463,-11342.96089445,0.00016275,2]
[395236477,1764559851472,-150.0,0.00016276,2]
[395236478,1764559851481,-150.0,0.00016279,2]
[395236479,1764559851490,-153.94390529,0.00016283,2]
[395236480,1764559851500,-215.77357495,0.00016283,2]
[395236481,1764559851509,-250.0,0.00016283,2]
[395236482,1764559851519,-150.0,0.00016283,2]
[395236483,1764559851530,-150.0,0.00016285,2]
[395236484,1764559851538,-153.94390529,0.000163,2]
[395236485,1764559851548,-215.77357495,0.000163,2]
[395236486,1764559851556,-150.0,0.000163,2]
[395236487,1764559851566,-150.0,0.00016302,2]
[395236488,1764559851575,-150.0,0.00016307,2]
[395236489,1764559851584,-150.0,0.00016312,2]
[395236490,1764559851593,-153.94390529,0.00016317,2]
[395236491,1764559851603,-215.77357495,0.00016317,2]
[395236492,1764559851612,-1413.01,0.0001632,2]
[395236493,1764559851622,-150.0,0.00016326,2]
[395236494,1764559851631,-150.0,0.00016329,2]
[395236495,1764559851640,-150.0,0.00016333,2]
[395236496,1764559851648,-153.94390529,0.00016334,2]
[395236497,1764559851656,-215.77357495,0.00016334,2]
[395236498,1764559851665,-500.0,0.00016335,2]
[395236499,1764559851675,-150.0,0.00016338,2]
[395236500,1764559851685,-150.0,0.00016339,2]
[395236501,1764559851695,-150.0,0.00016339,2]
[395236502,1764559851703,-200.0,0.0001634,2]
[395236503,1764559851713,-150.0,0.00016342,2]
[395236504,1764559851722,-150.0,0.00016349,2]
[395236505,1764559851731,-153.94390529,0.00016351,2]
[395236506,1764559851742,-215.77357495,0.00016351,2]
[395236507,1764559851751,-2855.96,0.00016364,2]
[395236508,1764559851760,-150.0,0.00016366,2]
[395236509,1764559851770,-150.0,0.00016366,2]
[395236510,1764559851781,-153.94390529,0.00016369,2]
[395236511,1764559851790,-215.77357495,0.00016369,2]
[395236512,1764559851799,-150.0,0.00016369,2]
[395236513,1764559851808,-150.0,0.00016373,2]
[395236514,1764559851817,-150.0,0.0001638,2]
[395236515,1764559851827,-150.0,0.00016384,2]
[395236516,1764559851836,-153.94390529,0.00016386,2]
[395236517,1764559851845,-215.77357495,0.00016386,2]
[395236518,1764559851855,-150.0,0.00016393,2]
[395236519,1764559851864,-150.0,0.00016396,2]
[395236520,1764559851874,-150.0,0.00016398,2]
[395236521,1764559851884,-150.0,0.000164,2]
[395236522,1764559851893,-150.0,0.00016401,2]
[395236523,1764559851902,-153.94390529,0.00016403,2]
[395236524,1764559851911,-215.77357495,0.00016403,2]
[395236525,1764559851920,-798.51664652,0.00016403,2]
[395236526,1764559851929,-878.0,0.00016405,2]
[395236527,1764559851939,-40196.82736878,0.00016418,2]
[395236528,1764559851949,-153.94390529,0.0001642,2]
[395236529,1764559851959,-215.77357495,0.0001642,2]
[395236530,1764559851969,-150.0,0.0001642,2]
[395236531,1764559851978,-150.0,0.0001642,2]
[395236532,1764559851988,-150.0,0.0001642,2]
[395236533,1764559851998,-150.0,0.0001642,2]
[395236534,1764559852009,-150.0,0.0001642,2]
[395236535,1764559852018,-150.0,0.0001642,2]
[395236536,1764559852028,-150.0,0.0001643,2]
[395236537,1764559852037,-150.0,0.00016431,2]
[395236538,1764559852046,-153.94390529,0.00016437,2]
[395236539,1764559852055,-215.77357495,0.00016437,2]
[395236540,1764559852064,-500.0,0.00016438,2]
[395236541,1764559852074,-500.0,0.00016438,2]
[395236542,1764559852084,-5454.01,0.00016438,2]
[395236543,1764559852094,-150.0,0.00016438,2]
[395236544,1764559852103,-800.0,0.00016438,2]
[395236545,1764559852112,-600.0,0.00016438,2]
[395236546,1764559852121,-163.94,0.0001644,2]
[395236547,1764559852135,-150.0,0.00016444,2]
[395236548,1764559852144,-150.0,0.00016447,2]
[395236549,1764559852153,-153.94390529,0.00016454,2]
[395236550,1764559852165,-215.77357495,0.00016454,2]
[395236551,1764559852174,-199.38,0.00016458,2]
[395236552,1764559852184,-150.0,0.00016459,2]
[395236553,1764559852195,-150.0,0.00016461,2]
[395236554,1764559852207,-150.0,0.00016464,2]
[395236555,1764559852217,-150.0,0.00016467,2]
[395236556,1764559852228,-153.94390529,0.00016472,2]
[395236557,1764559852239,-215.77357495,0.00016472,2]
[395236558,1764559852248,-150.0,0.00016474,2]
[395236559,1764559852258,-484.4802032,0.00016476,2]
[395236560,1764559852268,-908.0,0.00016483,2]
[395236561,1764559852281,-153.94390529,0.00016489,2]
[395236562,1764559852290,-215.77357495,0.00016489,2]
[395236563,1764559852299,-150.0,0.00016491,2]
[395236564,1764559852309,-150.0,0.00016492,2]
[395236565,1764559852318,-150.0,0.00016493,2]
[395236566,1764559852328,-150.0,0.00016496,2]
[395236567,1764559852337,-150.0,0.00016501,2]
[395236568,1764559852346,-150.0,0.00016501,2]
[395236569,1764559852356,-150.0,0.00016501,2]
[395236570,1764559852366,-153.94390529,0.00016506,2]
[395236571,1764559852375,-215.77357495,0.00016506,2]
[395236572,1764559852384,-150.0,0.00016514,2]
[395236573,1764559852392,-150.0,0.00016518,2]
[395236574,1764559852401,-465.96204167,0.00016518,2]
[395236575,1764559852410,-153.94390529,0.00016523,2]
[395236576,1764559852419,-215.77357495,0.00016523,2]
[395236577,1764559852428,-150.0,0.00016523,2]
[395236578,1764559852437,-150.0,0.00016528,2]
[395236579,1764559852446,-150.0,0.00016529,2]
[395236580,1764559852455,-150.0,0.00016538,2]
[395236581,1764559852464,-153.94390529,0.0001654,2]
[395236582,1764559852473,-215.77357495,0.0001654,2]
[395236583,1764559852482,-150.0,0.00016548,2]
[395236584,1764559852492,-150.0,0.00016554,2]
[395236585,1764559852501,-150.0,0.00016555,2]
[395236586,1764559852510,-153.94390529,0.00016557,2]
[395236587,1764559852521,-215.77357495,0.00016557,2]
[395236588,1764559852530,-150.0,0.00016562,2]
[395236589,1764559852539,-150.0,0.00016562,2]
[395236590,1764559852548,-150.0,0.00016562,2]
[395236591,1764559852557,-1000.0,0.00016564,2]
[395236592,1764559852566,-2500.0,0.00016564,2]
[395236593,1764559852575,-823.0,0.00016565,2]
[395236594,1764559852583,-153.94390529,0.00016575,2]
[395236595,1764559852592,-215.77357495,0.00016575,2]
[395236596,1764559852601,-150.0,0.00016576,2]
[395236597,1764559852610,-150.0,0.00016582,2]
[395236598,1764559852619,-150.0,0.00016582,2]
[395236599,1764559852628,-500.0,0.00016582,2]
[395236600,1764559852637,-150.0,0.00016585,2]
[395236601,1764559852647,-150.0,0.00016585,2]
[395236602,1764559852656,-153.94390529,0.00016592,2]
[395236603,1764559852666,-215.77357495,0.00016592,2]
[395236604,1764559852675,-1413.01,0.00016594,2]
[395236605,1764559852684,-150.0,0.00016594,2]
[395236606,1764559852693,-200.0,0.00016594,2]
[395236607,1764559852702,-500.0,0.00016594,2]
[395236608,1764559852712,-200.0,0.00016594,2]
[395236609,1764559852721,-1000.0,0.000166,2]
[395236610,1764559852730,-150.0,0.00016603,2]
[395236611,1764559852739,-153.94390529,0.00016609,2]
[395236612,1764559852748,-215.77357495,0.00016609,2]
[395236613,1764559852759,-150.0,0.00016609,2]
[395236614,1764559852768,-150.0,0.00016609,2]
[395236615,1764559852776,-150.0,0.00016609,2]
[395236616,1764559852784,-150.0,0.00016616,2]
[395236617,1764559852793,-150.0,0.00016622,2]
[395236618,1764559852803,-153.94390529,0.00016626,2]
[395236619,1764559852812,-215.77357495,0.00016626,2]
[395236620,1764559852821,-150.0,0.00016627,2]
[395236621,1764559852830,-150.0,0.00016632,2]
[395236622,1764559852840,-150.0,0.00016635,2]
[395236623,1764559852850,-150.0,0.00016636,2]
[395236624,1764559852859,-153.94390529,0.00016643,2]
[395236625,1764559852869,-215.77357495,0.00016643,2]
[395236626,1764559852878,-150.0,0.00016647,2]
[395236627,1764559852887,-150.0,0.00016656,2]
[395236628,1764559852897,-150.0,0.00016658,2]
[395236629,1764559852907,-150.0,0.0001666,2]
[395236630,1764559852916,-5491.65035635,0.0001666,2]
[395236631,1764559852925,-325.42872767,0.0001666,2]
[395236632,1764559852934,-153.94390529,0.0001666,2]
[395236633,1764559852943,-215.77357495,0.0001666,2]
[395236634,1764559852953,-150.0,0.00016663,2]
[395236635,1764559852963,-150.0,0.00016663,2]
[395236636,1764559852972,-153.94390529,0.00016677,2]
[395236637,1764559852982,-215.77357495,0.00016677,2]
[395236638,1764559852991,-150.0,0.00016677,2]
[395236639,1764559853002,-150.0,0.0001668,2]
[395236640,1764559853011,-878.0,0.00016684,2]
[395236641,1764559853021,-484.4802032,0.00016688,2]
[395236642,1764559853032,-150.0,0.0001669,2]
[395236643,1764559853042,-150.0,0.00016692,2]
[395236644,1764559853052,-3292.0,0.00016693,2]
[395236645,1764559853064,-150.0,0.00016693,2]
[395236646,1764559853074,-153.94390529,0.00016695,2]
[395236647,1764559853088,-215.77357495,0.00016695,2]
[395236648,1764559853099,-642.94,0.00016697,2]
[395236649,1764559853110,-151.0,0.00016697,2]
[395236650,1764559853120,-553.64373807,0.00016697,2]
[395236651,1764559853130,-201.93286099,0.00016697,2]
[395236652,1764559853141,-151.0,0.00016697,2]
[395236653,1764559853151,-3000.0,0.00016697,2]
[395236654,1764559853161,-151.0,0.00016697,2]
[395236655,1764559853172,-201.93286099,0.00016697,2]
[395236656,1764559853181,-9009.95799249,0.000167,2]
[395236657,1764559853191,-150.0,0.00016703,2]
[395236658,1764559853371,-150.0,0.00016703,2]
[395236659,1764559853381,-878.0,0.00016705,2]
[395236660,1764559853393,-150.0,0.00016708,2]
[395236661,1764559853403,-153.94390529,0.00016712,2]
[395236662,1764559853413,-215.77357495,0.00016712,2]
[395236663,1764559853423,-150.0,0.00016712,2]
[395236664,1764559853433,-151.0,0.00016713,2]
[395236665,1764559853444,-1513.10536683,0.00016715,2]
[395236666,1764559853454,-150.0,0.00016717,2]
[395236667,1764559853465,-150.0,0.00016725,2]
[395236668,1764559853475,-150.0,0.00016727,2]
[395236669,1764559853484,-153.94390529,0.00016729,2]
[395236670,1764559853494,-215.77357495,0.00016729,2]
[395236671,1764559853504,-150.0,0.00016739,2]
[395236672,1764559853514,-427.65493559,0.0001674,2]
[395236673,1764559853523,-150.0,0.00016744,2]
[395236674,1764559853534,-150.0,0.00016744,2]
[395236675,1764559853544,-150.0,0.00016744,2]
[395236676,1764559853554,-6911.10840627,0.00016745,2]
[395236677,1764559853564,-153.94390529,0.00016746,2]
[395236678,1764559853574,-215.77357495,0.00016746,2]
[395236679,1764559853584,-150.0,0.0001675,2]
[395236680,1764559853594,-150.0,0.00016752,2]
[395236681,1764559853604,-150.0,0.00016758,2]
[395236682,1764559853613,-153.94390529,0.00016763,2]
[395236683,1764559853623,-215.77357495,0.00016763,2]
[395236684,1764559853633,-150.0,0.00016767,2]
[395236685,1764559853642,-150.0,0.0001677,2]
[395236686,1764559853653,-150.0,0.00016771,2]
[395236687,1764559853663,-150.0,0.00016774,2]
[395236688,1764559853673,-153.94390529,0.0001678,2]
[395236689,1764559853683,-215.77357495,0.0001678,2]
[395236690,1764559853693,-150.0,0.0001679,2]
[395236691,1764559853704,-153.94390529,0.00016798,2]
[395236692,1764559853714,-215.77357495,0.00016798,2]
[395236693,1764559853724,-150.0,0.00016798,2]
[395236694,1764559853733,-150.0,0.00016798,2]
[395236695,1764559853743,-150.0,0.00016798,2]
[395236696,1764559853753,-1000.0,0.000168,2]
[395236697,1764559853764,-150.0,0.00016801,2]
[395236698,1764559853774,-150.0,0.00016811,2]
[395236699,1764559853787,-153.94390529,0.00016815,2]
[395236700,1764559853800,-215.77357495,0.00016815,2]
[395236701,1764559853810,-150.0,0.00016821,2]
[395236702,1764559853820,-150.0,0.00016822,2]
[395236703,1764559853830,-150.0,0.00016823,2]
[395236704,1764559853839,-222.76990664,0.00016823,2]
[395236705,1764559853849,-150.0,0.00016825,2]
[395236706,1764559853859,-150.0,0.00016825,2]
[395236707,1764559853869,-878.0,0.00016826,2]
[395236708,1764559853878,-153.94390529,0.00016832,2]
[395236709,1764559853888,-215.77357495,0.00016832,2]
[395236710,1764559853898,-150.0,0.00016832,2]
[395236711,1764559853907,-150.0,0.00016845,2]
[395236712,1764559853918,-153.94390529,0.00016849,2]
[395236713,1764559853927,-215.77357495,0.00016849,2]
[395236714,1764559853937,-150.0,0.00016851,2]
[395236715,1764559853948,-150.0,0.00016856,2]
[395236716,1764559853957,-150.0,0.00016863,2]
[395236717,1764559853967,-200.0,0.00016863,2]
[395236718,1764559853976,-200.0,0.00016864,2]
[395236719,1764559853987,-200.0,0.00016864,2]
[395236720,1764559853996,-150.0,0.00016865,2]
[395236721,1764559854006,-153.94390529,0.00016866,2]
[395236722,1764559854016,-215.77357495,0.00016866,2]
[395236723,1764559854025,-1413.10162412,0.00016868,2]
[395236724,1764559854035,-150.0,0.00016868,2]
[395236725,1764559854046,-150.0,0.00016869,2]
[395236726,1764559854056,-150.0,0.00016877,2]
[395236727,1764559854066,-150.0,0.00016878,2]
[395236728,1764559854076,-153.94390529,0.00016883,2]
[395236729,1764559854086,-215.77357495,0.00016883,2]
[395236730,1764559854095,-150.0,0.00016888,2]
[395236731,1764559854105,-10000.0,0.0001689,2]
[395236732,1764559854116,-258.51225589,0.00016891,2]
[395236733,1764559854126,-150.0,0.00016892,2]
[395236734,1764559854136,-150.0,0.00016894,2]
[395236735,1764559854146,-1169.06569469,0.00016896,2]
[395236736,1764559854156,-1169.06569467,0.00016898,2]
[395236737,1764559854167,-250.0,0.00016899,2]
[395236738,1764559854177,-250.0,0.00016899,2]
[395236739,1764559854188,-10015.0,0.000169,2]
[395236740,1764559854198,-428.54,0.000169,2]
[395236741,1764559854208,-798.51664652,0.000169,2]
[395236742,1764559854218,-40196.82736878,0.000169,2]
[395236743,1764559854228,-484.4802032,0.000169,2]
[395236744,1764559854238,-1169.06569467,0.000169,2]
[395236745,1764559854247,-1577.0,0.000169,2]
[395236746,1764559854257,-945.69207061,0.000169,2]
[395236747,1764559854266,-15123.82076573,0.000169,2]
[395236748,1764559854281,-153.94390529,0.00016901,2]
[395236749,1764559854290,-215.77357495,0.00016901,2]
[395236750,1764559854299,-150.0,0.00016905,2]
[395236751,1764559854311,-150.0,0.00016905,2]
[395236752,1764559854321,-150.0,0.00016916,2]
[395236753,1764559854331,-153.94390529,0.00016918,2]
[395236754,1764559854340,-215.77357495,0.00016918,2]
[395236755,1764559854350,-150.0,0.00016921,2]
[395236756,1764559854361,-150.0,0.00016925,2]
[395236757,1764559854370,-150.0,0.00016928,2]
[395236758,1764559854380,-150.0,0.00016932,2]
[395236759,1764559854390,-150.0,0.00016932,2]
[395236760,1764559854400,-153.94390529,0.00016935,2]
[395236761,1764559854410,-215.77357495,0.00016935,2]
[395236762,1764559854421,-150.0,0.00016939,2]
[395236763,1764559854430,-153.94390529,0.00016952,2]
[395236764,1764559854439,-215.77357495,0.00016952,2]
[395236765,1764559854449,-150.0,0.00016954,2]
[395236766,1764559854459,-150.0,0.00016955,2]
[395236767,1764559854469,-150.0,0.00016959,2]
[395236768,1764559854479,-150.0,0.00016963,2]
[395236769,1764559854489,-2000.0,0.00016969,2]
[395236770,1764559854498,-2000.0,0.00016969,2]
[395236771,1764559854508,-2000.0,0.00016969,2]
[395236772,1764559854518,-2000.0,0.00016969,2]
[395236773,1764559854527,-2000.0,0.00016969,2]
[395236774,1764559854538,-2000.0,0.00016969,2]
[395236775,1764559854548,-2000.0,0.00016969,2]
[395236776,1764559854560,-2000.0,0.00016969,2]
[395236777,1764559854570,-1453.256,0.00016969,2]
[395236778,1764559854579,-1000.0,0.00016969,2]
[395236779,1764559854588,-1000.0,0.00016969,2]
[395236780,1764559854596,-1000.0,0.00016969,2]
[395236781,1764559854605,-1000.0,0.00016969,2]
[395236782,1764559854616,-1000.0,0.00016969,2]
[395236783,1764559854625,-1000.0,0.00016969,2]
[395236784,1764559854635,-153.94390529,0.00016969,2]
[395236785,1764559854644,-215.77357495,0.00016969,2]
[395236786,1764559854653,-1000.0,0.00016972,2]
[395236787,1764559854664,-1000.0,0.00016972,2]
[395236788,1764559854674,-1000.0,0.00016972,2]
[395236789,1764559854684,-1000.0,0.00016972,2]
[395236790,1764559854693,-1000.0,0.00016972,2]
[395236791,1764559854703,-1000.0,0.00016972,2]
[395236792,1764559854712,-1000.0,0.00016972,2]
[395236793,1764559854722,-1000.0,0.00016972,2]
[395236794,1764559854731,-1000.0,0.00016972,2]
[395236795,1764559854740,-1000.0,0.00016972,2]
[395236796,1764559854749,-1000.0,0.00016972,2]
[395236797,1764559854759,-500.0,0.00016973,2]
[395236798,1764559854768,-191.85688305,0.00016973,2]
[395236799,1764559854780,-388.21665271,0.00016973,2]
[395236800,1764559854790,-500.0,0.00016973,2]
[395236801,1764559854800,-500.0,0.00016973,2]
[395236802,1764559854810,-586.42715679,0.00016973,2]
[395236803,1764559854820,-500.0,0.00016973,2]
[395236804,1764559854830,-500.0,0.00016973,2]
[395236805,1764559854839,-500.0,0.00016973,2]
[395236806,1764559854848,-500.45943647,0.00016973,2]
[395236807,1764559854858,-332.16239915,0.00016973,2]
[395236808,1764559854869,-505.70856743,0.00016973,2]
[395236809,1764559854879,-503.91137404,0.00016973,2]
[395236810,1764559854888,-500.0,0.00016973,2]
[395236811,1764559854897,-500.0,0.00016973,2]
[395236812,1764559854906,-500.0,0.00016973,2]
[395236813,1764559854915,-500.0,0.00016973,2]
[395236814,1764559854925,-206.01551169,0.00016973,2]
[395236815,1764559854934,-500.62734798,0.00016973,2]
[395236816,1764559854943,-500.70186377,0.00016973,2]
[395236817,1764559854952,-500.0,0.00016973,2]
[395236818,1764559854960,-500.0,0.00016973,2]
[395236819,1764559854970,-500.0,0.00016973,2]
[395236820,1764559854979,-501.34245415,0.00016973,2]
[395236821,1764559854989,-500.0,0.00016973,2]
[395236822,1764559854998,-500.0,0.00016973,2]
[395236823,1764559855008,-500.0,0.00016973,2]
[395236824,1764559855017,-506.27683139,0.00016973,2]
[395236825,1764559855026,-500.0,0.00016973,2]
[395236826,1764559855036,-356.06806903,0.00016973,2]
[395236827,1764559855045,-500.0,0.00016973,2]
[395236828,1764559855055,-569.20900345,0.00016973,2]
[395236829,1764559855064,-409.96658599,0.00016973,2]
[395236830,1764559855074,-500.0,0.00016973,2]
[395236831,1764559855083,-500.0,0.00016973,2]
[395236832,1764559855093,-500.0,0.00016973,2]
[395236833,1764559855102,-494.55213464,0.00016973,2]
[395236834,1764559855112,-500.0,0.00016973,2]
[395236835,1764559855121,-500.0,0.00016973,2]
[395236836,1764559855131,-453.79493009,0.00016973,2]
[395236837,1764559855140,-500.0,0.00016973,2]
[395236838,1764559855150,-499.90161086,0.00016973,2]
[395236839,1764559855159,-281.76890158,0.00016973,2]
[395236840,1764559855168,-500.0,0.00016973,2]
[395236841,1764559855178,-500.0,0.00016973,2]
[395236842,1764559855187,-500.0,0.00016973,2]
[395236843,1764559855196,-504.52598037,0.00016973,2]
[395236844,1764559855206,-500.0,0.00016973,2]
[395236845,1764559855215,-269.91867043,0.0001698,2]
[395236846,1764559855225,-500.0,0.0001698,2]
[395236847,1764559855235,-500.0,0.0001698,2]
[395236848,1764559855244,-500.0,0.0001698,2]
[395236849,1764559855253,-247.8255487,0.00016986,2]
[395236850,1764559855263,-150.0,0.00016986,2]
[395236851,1764559855273,-153.94390529,0.00016986,2]
[395236852,1764559855284,-215.77357495,0.00016986,2]
[395236853,1764559855293,-150.00000001,0.00016986,2]
[395236854,1764559855303,-150.0,0.00016986,2]
[395236855,1764559855315,-150.0,0.00016986,2]
[395236856,1764559855324,-150.0,0.00016986,2]
[395236857,1764559855334,-150.0,0.00016986,2]
[395236858,1764559855343,-227.44220096,0.00016986,2]
[395236859,1764559855353,-158.27867006,0.00016986,2]
[395236860,1764559855363,-150.0,0.00016986,2]
[395236861,1764559855373,-200.0,0.00016986,2]
[395236862,1764559855382,-150.0,0.00016986,2]
[395236863,1764559855391,-150.0,0.00016986,2]
[395236864,1764559855402,-600.0,0.00016986,2]
[395236865,1764559855411,-500.0,0.00016989,2]
[395236866,1764559855421,-500.0,0.00016989,2]
[395236867,1764559855431,-500.0,0.00016989,2]
[395236868,1764559855441,-500.0,0.00016989,2]
[395236869,1764559855450,-500.0,0.00016989,2]
[395236870,1764559855459,-500.0,0.00016989,2]
[395236871,1764559855469,-500.0,0.00016989,2]
[395236872,1764559855479,-628.88445166,0.00016989,2]
[395236873,1764559855488,-500.0,0.00016989,2]
[395236874,1764559855839,-500.0,0.00016989,2]
[395236875,1764559855849,-500.0,0.00016989,2]
[395236876,1764559855858,-500.0,0.00016989,2]
[395236877,1764559855868,-272.31531384,0.00016989,2]
[395236878,1764559855879,-500.0,0.00016989,2]
[395236879,1764559855888,-500.0,0.00016989,2]
[395236880,1764559855898,-500.0,0.00016989,2]
[395236881,1764559855907,-215.61919432,0.0001699,2]
[395236882,1764559855917,-151.0,0.00016993,2]
[395236883,1764559855926,-500.0,0.00016995,2]
[395236884,1764559855935,-500.0,0.00016995,2]
[395236885,1764559855945,-500.0,0.00016995,2]